[Event "Early-Titled-Tuesday-Blitz-May-14-2024"]
[Site "Chess.com"]
[Date "2024.05.14"]
[Round "7"]
[White "TigrVShlyape"]
[Black "sokidze"]
[Result "1/2-1/2"]
[WhiteElo "2946"]
[BlackElo "2804"]
[TimeControl "180+1"]
[EndTime "9:20:49 PDT"]
[Termination "Game drawn by repetition"]

1. e4 {[%clk 0:03:00.9]} 1... e5 {[%clk 0:03:00.3]} 2. Nf3 {[%clk 0:02:52.7]}
2... Nf6 {[%clk 0:03:00.6]} 3. Nxe5 {[%clk 0:02:49.5]} 3... d6 {[%clk 0:03:01]}
4. Nf3 {[%clk 0:02:49.7]} 4... Nxe4 {[%clk 0:03:01.5]} 5. d3 {[%clk 0:02:49.3]}
5... Nf6 {[%clk 0:03:01.8]} 6. d4 {[%clk 0:02:49.8]} 6... d5 {[%clk 0:03:02.3]}
7. Bd3 {[%clk 0:02:50.1]} 7... Bd6 {[%clk 0:03:02.8]} 8. O-O {[%clk 0:02:47.8]}
8... O-O {[%clk 0:03:02.8]} 9. h3 {[%clk 0:02:46.5]} 9... h6 {[%clk 0:03:03]}
10. c4 {[%clk 0:02:46]} 10... dxc4 {[%clk 0:02:54.6]} 11. Bxc4 {[%clk
0:02:45.6]} 11... Nbd7 {[%clk 0:02:54.8]} 12. Nc3 {[%clk 0:02:45.4]} 12... Nb6
{[%clk 0:02:54.9]} 13. Bb3 {[%clk 0:02:42.2]} 13... Bf5 {[%clk 0:02:40.8]} 14.
Re1 {[%clk 0:02:37.6]} 14... c6 {[%clk 0:02:25.1]} 15. Ne5 {[%clk 0:02:35.3]}
15... Nbd5 {[%clk 0:02:12.8]} 16. Qf3 {[%clk 0:02:31.6]} 16... Bh7 {[%clk
0:02:12.8]} 17. Bd2 {[%clk 0:02:06.1]} 17... a5 {[%clk 0:02:11]} 18. Rac1 {[%clk
0:01:47.9]} 18... Bb4 {[%clk 0:01:41.2]} 19. a3 {[%clk 0:01:42.4]} 19... Bd6
{[%clk 0:01:28.4]} 20. Na4 {[%clk 0:01:40.7]} 20... Rc8 {[%clk 0:01:26.7]} 21.
Nc5 {[%clk 0:01:36.3]} 21... Rc7 {[%clk 0:01:20.5]} 22. Nc4 {[%clk 0:01:28.9]}
22... b6 {[%clk 0:01:09.6]} 23. Nd3 {[%clk 0:01:28]} 23... Rc8 {[%clk
0:00:38.6]} 24. Nce5 {[%clk 0:01:22.5]} 24... Bxe5 {[%clk 0:00:30.2]} 25. Nxe5
{[%clk 0:01:16.9]} 25... Qd6 {[%clk 0:00:29.6]} 26. Bf4 {[%clk 0:01:08.1]} 26...
Nxf4 {[%clk 0:00:27.1]} 27. Qxf4 {[%clk 0:01:07.8]} 27... Nd5 {[%clk 0:00:27.7]}
28. Qg3 {[%clk 0:01:06]} 28... Rfe8 {[%clk 0:00:25.6]} 29. Qf3 {[%clk
0:01:03.2]} 29... Re7 {[%clk 0:00:14.8]} 30. Nxc6 {[%clk 0:01:01.2]} 30... Rxc6
{[%clk 0:00:14.3]} 31. Qxd5 {[%clk 0:00:59.2]} 31... Qxd5 {[%clk 0:00:07.2]} 32.
Bxd5 {[%clk 0:00:58.6]} 32... Rxc1 {[%clk 0:00:07.8]} 33. Rxc1 {[%clk
0:00:58.7]} 33... Bg6 {[%clk 0:00:08.5]} 34. Bf3 {[%clk 0:00:52.2]} 34... Rd7
{[%clk 0:00:03.6]} 35. d5 {[%clk 0:00:50.6]} 35... Kf8 {[%clk 0:00:02.2]} 36.
Rc6 {[%clk 0:00:49.1]} 36... b5 {[%clk 0:00:02.8]} 37. Rc5 {[%clk 0:00:48.4]}
37... Bd3 {[%clk 0:00:02.5]} 38. h4 {[%clk 0:00:37.5]} 38... Ke7 {[%clk
0:00:02.7]} 39. Kh2 {[%clk 0:00:36.2]} 39... a4 {[%clk 0:00:02.3]} 40. Kg3
{[%clk 0:00:35.8]} 40... g5 {[%clk 0:00:02.7]} 41. hxg5 {[%clk 0:00:34.1]} 41...
hxg5 {[%clk 0:00:03.6]} 42. Kg4 {[%clk 0:00:24.3]} 42... f6 {[%clk 0:00:04.1]}
43. Rc3 {[%clk 0:00:21.9]} 43... Bc4 {[%clk 0:00:02.6]} 44. Re3+ {[%clk
0:00:20.6]} 44... Kf7 {[%clk 0:00:03.1]} 45. Kg3 {[%clk 0:00:14.6]} 45... Bxd5
{[%clk 0:00:02.2]} 46. Rd3 {[%clk 0:00:14.8]} 46... Be6 {[%clk 0:00:02.7]} 47.
Rxd7+ {[%clk 0:00:14.3]} 47... Bxd7 {[%clk 0:00:03.6]} 48. Bd5+ {[%clk 0:00:13]}
48... Ke7 {[%clk 0:00:04]} 49. f4 {[%clk 0:00:13.3]} 49... Kd6 {[%clk
0:00:04.5]} 50. Be4 {[%clk 0:00:12.3]} 50... Kc5 {[%clk 0:00:04.7]} 51. fxg5
{[%clk 0:00:11.7]} 51... fxg5 {[%clk 0:00:05.6]} 52. Kf3 {[%clk 0:00:11.5]}
52... Kd4 {[%clk 0:00:06]} 53. Bg6 {[%clk 0:00:10.6]} 53... Bc6+ {[%clk
0:00:06]} 54. Kf2 {[%clk 0:00:10.7]} 54... Kc4 {[%clk 0:00:06.2]} 55. Bc2 {[%clk
0:00:10.5]} 55... Bd5 {[%clk 0:00:05.6]} 56. g3 {[%clk 0:00:10.3]} 56... Kd4
{[%clk 0:00:05.9]} 57. Ke2 {[%clk 0:00:10.3]} 57... Be4 {[%clk 0:00:05.9]} 58.
Bd1 {[%clk 0:00:10.3]} 58... Bf5 {[%clk 0:00:03.2]} 59. Kd2 {[%clk 0:00:10.2]}
59... Bd3 {[%clk 0:00:03.3]} 60. Bf3 {[%clk 0:00:10.3]} 60... Bc4 {[%clk
0:00:03.5]} 61. Bc6 {[%clk 0:00:09.6]} 61... Bd3 {[%clk 0:00:03.7]} 62. Be8
{[%clk 0:00:08.8]} 62... Bc4 {[%clk 0:00:04.1]} 63. Bd7 {[%clk 0:00:09.1]} 63...
Bd3 {[%clk 0:00:04.5]} 64. Be8 {[%clk 0:00:09]} 64... Bc4 {[%clk 0:00:05.1]} 65.
Bd7 {[%clk 0:00:09.3]} 65... Bd3 {[%clk 0:00:05.7]} 66. Be8 {[%clk 0:00:09.6]}
1/2-1/2

[Event "Early-Titled-Tuesday-Blitz-May-14-2024"]
[Site "Chess.com"]
[Date "2024.05.14"]
[Round "7"]
[White "brunomorado"]
[Black "manitodeplomo"]
[Result "1-0"]
[WhiteElo "2390"]
[BlackElo "2573"]
[TimeControl "180+1"]
[EndTime "9:20:50 PDT"]
[Termination "brunomorado won on time"]

1. d4 {[%clk 0:03:00.9]} 1... c5 {[%clk 0:02:47.5]} 2. Nc3 {[%clk 0:03:00.5]}
2... cxd4 {[%clk 0:02:46.2]} 3. Qxd4 {[%clk 0:03:01.4]} 3... Nc6 {[%clk
0:02:46.1]} 4. Qa4 {[%clk 0:03:02]} 4... d6 {[%clk 0:02:44.3]} 5. Nf3 {[%clk
0:03:01.6]} 5... Bd7 {[%clk 0:02:44.6]} 6. Bg5 {[%clk 0:03:01.6]} 6... Nf6
{[%clk 0:02:35.4]} 7. Bxf6 {[%clk 0:02:48.6]} 7... gxf6 {[%clk 0:02:36.3]} 8.
O-O-O {[%clk 0:02:49.1]} 8... a6 {[%clk 0:02:27.2]} 9. e3 {[%clk 0:02:49]} 9...
e6 {[%clk 0:02:26.9]} 10. Be2 {[%clk 0:02:44.4]} 10... h5 {[%clk 0:02:22.8]} 11.
Qf4 {[%clk 0:02:40.7]} 11... Be7 {[%clk 0:02:14.8]} 12. Kb1 {[%clk 0:02:36]}
12... Qb8 {[%clk 0:02:03.9]} 13. Ne4 {[%clk 0:02:32.9]} 13... d5 {[%clk
0:01:15.4]} 14. Nxf6+ {[%clk 0:02:31]} 14... Kd8 {[%clk 0:01:15.3]} 15. Qxb8+
{[%clk 0:02:24.3]} 15... Rxb8 {[%clk 0:01:14.6]} 16. Nxd7 {[%clk 0:02:25]} 16...
Kxd7 {[%clk 0:01:14.6]} 17. e4 {[%clk 0:02:25]} 17... h4 {[%clk 0:01:08.1]} 18.
exd5 {[%clk 0:02:24.1]} 18... exd5 {[%clk 0:01:09]} 19. Rxd5+ {[%clk 0:02:24.4]}
19... Kc7 {[%clk 0:01:09]} 20. Rhd1 {[%clk 0:02:22.9]} 20... Rbd8 {[%clk
0:01:05.4]} 21. Rxd8 {[%clk 0:02:18.3]} 21... Bxd8 {[%clk 0:01:03]} 22. Bc4
{[%clk 0:02:15.9]} 22... Bf6 {[%clk 0:00:57.9]} 23. Bxf7 {[%clk 0:02:11.6]}
23... Ne5 {[%clk 0:00:57.4]} 24. Nxe5 {[%clk 0:01:59.5]} 24... Bxe5 {[%clk
0:00:58.3]} 25. Be6 {[%clk 0:01:35.6]} 25... Bxh2 {[%clk 0:00:57]} 26. Rd7+
{[%clk 0:01:34.9]} 26... Kc6 {[%clk 0:00:54.7]} 27. Rf7 {[%clk 0:01:34.7]} 27...
Rd8 {[%clk 0:00:42.8]} 28. a4 {[%clk 0:01:29.4]} 28... Rd1+ {[%clk 0:00:38.3]}
29. Ka2 {[%clk 0:01:29.2]} 29... Rd2 {[%clk 0:00:38]} 30. Kb3 {[%clk 0:01:23.3]}
30... Bg1 {[%clk 0:00:33.5]} 31. c4 {[%clk 0:01:19.2]} 31... Bxf2 {[%clk
0:00:30]} 32. Bd5+ {[%clk 0:01:19.1]} 32... Kc5 {[%clk 0:00:30.4]} 33. Kc3
{[%clk 0:01:15.5]} 33... Be1 {[%clk 0:00:28.5]} 34. b4+ {[%clk 0:01:15.3]} 34...
Kd6 {[%clk 0:00:28.5]} 35. Rf6+ {[%clk 0:01:12.8]} 35... Kd7 {[%clk 0:00:27.5]}
36. Rf7+ {[%clk 0:01:12.8]} 36... Kd6 {[%clk 0:00:27.1]} 37. Rf1 {[%clk
0:00:44.7]} 37... Rxd5+ {[%clk 0:00:13.6]} 38. Rxe1 {[%clk 0:00:43.5]} 38... Rg5
{[%clk 0:00:13.9]} 39. Re2 {[%clk 0:00:39.9]} 39... Rg3+ {[%clk 0:00:13.3]} 40.
Kd4 {[%clk 0:00:38]} 40... Rg4+ {[%clk 0:00:12.9]} 41. Re4 {[%clk 0:00:37.1]}
41... Rxg2 {[%clk 0:00:11.7]} 42. Rxh4 {[%clk 0:00:32.8]} 42... Kc7 {[%clk
0:00:11]} 43. a5 {[%clk 0:00:30.3]} 43... Rg7 {[%clk 0:00:09.7]} 44. Re4 {[%clk
0:00:28.1]} 44... Rf7 {[%clk 0:00:08.9]} 45. Kd5 {[%clk 0:00:26.5]} 45... Rf5+
{[%clk 0:00:08.2]} 46. Re5 {[%clk 0:00:26.6]} 46... Rf7 {[%clk 0:00:08.6]} 47.
Rh5 {[%clk 0:00:24.9]} 47... Rg7 {[%clk 0:00:08.5]} 48. b5 {[%clk 0:00:24.1]}
48... axb5 {[%clk 0:00:07.8]} 49. cxb5 {[%clk 0:00:25]} 49... Rd7+ {[%clk
0:00:04.1]} 50. Kc5 {[%clk 0:00:24.8]} 50... Rg7 {[%clk 0:00:04.6]} 51. Rd5
{[%clk 0:00:22.8]} 51... Rf7 {[%clk 0:00:04.4]} 52. Rh5 {[%clk 0:00:22.5]} 52...
Rg7 {[%clk 0:00:04.6]} 53. b6+ {[%clk 0:00:22.8]} 53... Kd7 {[%clk 0:00:04.5]}
54. Kb5 {[%clk 0:00:21.3]} 54... Kd6 {[%clk 0:00:04]} 55. a6 {[%clk 0:00:20.8]}
55... bxa6+ {[%clk 0:00:03.6]} 56. Kxa6 {[%clk 0:00:21.7]} 56... Rg1 {[%clk
0:00:03.7]} 57. Rh2 {[%clk 0:00:18.3]} 57... Ra1+ {[%clk 0:00:02.5]} 58. Kb7
{[%clk 0:00:18.7]} 58... Rb1 {[%clk 0:00:02.2]} 59. Rc2 {[%clk 0:00:19.1]} 59...
Kd7 {[%clk 0:00:02]} 60. Ka7 {[%clk 0:00:18.6]} 60... Kd6 {[%clk 0:00:01.2]} 61.
b7 {[%clk 0:00:18.2]} 61... Ra1+ {[%clk 0:00:00.8]} 62. Kb8 {[%clk 0:00:18.4]}
62... Rb1 {[%clk 0:00:01.7]} 63. Kc8 {[%clk 0:00:18.7]} 1-0

[Event "Early-Titled-Tuesday-Blitz-May-14-2024"]
[Site "Chess.com"]
[Date "2024.05.14"]
[Round "7"]
[White "Kombinator01"]
[Black "sergeikim"]
[Result "1/2-1/2"]
[WhiteElo "2368"]
[BlackElo "2613"]
[TimeControl "180+1"]
[EndTime "9:20:51 PDT"]
[Termination "Game drawn by repetition"]

1. d4 {[%clk 0:02:59]} 1... Nf6 {[%clk 0:02:59.5]} 2. c4 {[%clk 0:02:58.3]} 2...
g6 {[%clk 0:02:59.9]} 3. Nc3 {[%clk 0:02:56.6]} 3... Bg7 {[%clk 0:03:00.4]} 4.
e4 {[%clk 0:02:56]} 4... d6 {[%clk 0:03:01.3]} 5. h3 {[%clk 0:02:54.8]} 5... O-O
{[%clk 0:03:01.9]} 6. Bd3 {[%clk 0:02:49.5]} 6... e5 {[%clk 0:03:00.7]} 7. d5
{[%clk 0:02:48.4]} 7... a5 {[%clk 0:03:00.9]} 8. Nge2 {[%clk 0:02:47.7]} 8...
Nh5 {[%clk 0:02:59]} 9. g4 {[%clk 0:02:46.5]} 9... Nf4 {[%clk 0:02:57.1]} 10.
Nxf4 {[%clk 0:02:42.2]} 10... exf4 {[%clk 0:02:58]} 11. Bxf4 {[%clk 0:02:41.4]}
11... Na6 {[%clk 0:02:58]} 12. Be3 {[%clk 0:02:40.5]} 12... Nc5 {[%clk
0:02:54.4]} 13. Bxc5 {[%clk 0:02:38]} 13... dxc5 {[%clk 0:02:54]} 14. Qc2 {[%clk
0:02:31.4]} 14... Bd7 {[%clk 0:02:49.4]} 15. O-O-O {[%clk 0:02:28.7]} 15... a4
{[%clk 0:02:47.8]} 16. a3 {[%clk 0:02:24.2]} 16... Qf6 {[%clk 0:02:20]} 17. Rde1
{[%clk 0:02:08.7]} 17... Rfe8 {[%clk 0:02:18.6]} 18. Rhf1 {[%clk 0:02:07.1]}
18... Qf3 {[%clk 0:02:15.5]} 19. Re3 {[%clk 0:01:48.4]} 19... Bh6 {[%clk
0:02:14.3]} 20. Qd2 {[%clk 0:01:48.4]} 20... Bxe3 {[%clk 0:02:04.7]} 21. Qxe3
{[%clk 0:01:49.3]} 21... Qxe3+ {[%clk 0:02:02.9]} 22. fxe3 {[%clk 0:01:49.5]}
22... Kg7 {[%clk 0:01:59.2]} 23. Bc2 {[%clk 0:01:39.6]} 23... Re5 {[%clk
0:01:54.9]} 24. Rg1 {[%clk 0:01:18.7]} 24... h5 {[%clk 0:01:45.1]} 25. Kd2
{[%clk 0:01:14.6]} 25... hxg4 {[%clk 0:01:41.8]} 26. hxg4 {[%clk 0:01:15.5]}
26... Rg5 {[%clk 0:01:41.6]} 27. Bd1 {[%clk 0:01:14.4]} 27... Rh8 {[%clk
0:01:38]} 28. Rg2 {[%clk 0:01:12.2]} 28... Rh4 {[%clk 0:01:29.6]} 29. Bxa4
{[%clk 0:01:02.7]} 29... Bxa4 {[%clk 0:01:25.5]} 30. Nxa4 {[%clk 0:01:02.5]}
30... b6 {[%clk 0:01:26]} 31. b4 {[%clk 0:01:01.6]} 31... cxb4 {[%clk
0:01:24.9]} 32. axb4 {[%clk 0:01:02.1]} 32... Rhxg4 {[%clk 0:01:23.6]} 33. Rxg4
{[%clk 0:01:00.9]} 33... Rxg4 {[%clk 0:01:23.6]} 34. Kd3 {[%clk 0:00:52.8]}
34... Kf6 {[%clk 0:01:19.6]} 35. c5 {[%clk 0:00:51.9]} 35... bxc5 {[%clk
0:01:19.4]} 36. bxc5 {[%clk 0:00:49.3]} 36... Ke5 {[%clk 0:01:15.1]} 37. Nc3
{[%clk 0:00:39]} 37... Rh4 {[%clk 0:01:05.8]} 38. c6 {[%clk 0:00:35.8]} 38... g5
{[%clk 0:01:00.4]} 39. Nb5 {[%clk 0:00:31.3]} 39... f5 {[%clk 0:00:51.1]} 40.
exf5 {[%clk 0:00:25]} 40... Kxd5 {[%clk 0:00:49.5]} 41. Nxc7+ {[%clk 0:00:19.3]}
41... Kxc6 {[%clk 0:00:49.2]} 42. Ne6 {[%clk 0:00:19.5]} 42... g4 {[%clk
0:00:47.9]} 43. Ke4 {[%clk 0:00:18.6]} 43... Rh3 {[%clk 0:00:42]} 44. Ng5 {[%clk
0:00:17.2]} 44... Rg3 {[%clk 0:00:36.3]} 45. Kf4 {[%clk 0:00:16.9]} 45... Rg1
{[%clk 0:00:36.2]} 46. e4 {[%clk 0:00:16.9]} 46... Kd6 {[%clk 0:00:34.3]} 47.
e5+ {[%clk 0:00:17.1]} 47... Kd5 {[%clk 0:00:34.7]} 48. f6 {[%clk 0:00:13.9]}
48... Rf1+ {[%clk 0:00:34.3]} 49. Kxg4 {[%clk 0:00:11.1]} 49... Kxe5 {[%clk
0:00:34.5]} 50. f7 {[%clk 0:00:09.2]} 50... Kd6 {[%clk 0:00:27.8]} 51. Kh5
{[%clk 0:00:05.1]} 51... Ke7 {[%clk 0:00:26.9]} 52. Kg6 {[%clk 0:00:05.4]} 52...
Rg1 {[%clk 0:00:23.5]} 53. Kf5 {[%clk 0:00:06]} 53... Kf8 {[%clk 0:00:21.1]} 54.
Kf6 {[%clk 0:00:06.3]} 54... Rf1+ {[%clk 0:00:20.9]} 55. Kg6 {[%clk 0:00:06.7]}
55... Ke7 {[%clk 0:00:19.6]} 56. Kg7 {[%clk 0:00:06.2]} 56... Rf5 {[%clk
0:00:17.6]} 57. Kg6 {[%clk 0:00:05.8]} 57... Rf6+ {[%clk 0:00:17.1]} 58. Kg7
{[%clk 0:00:05.9]} 58... Rf4 {[%clk 0:00:16.2]} 59. Kg6 {[%clk 0:00:05.4]} 59...
Rg4 {[%clk 0:00:14.5]} 60. Kf5 {[%clk 0:00:04.7]} 60... Rg1 {[%clk 0:00:13.7]}
61. Kg6 {[%clk 0:00:05.1]} 61... Rf1 {[%clk 0:00:13.3]} 62. Kg7 {[%clk
0:00:05.1]} 62... Rf4 {[%clk 0:00:11.6]} 63. Kg6 {[%clk 0:00:04.8]} 63... Rf1
{[%clk 0:00:10.4]} 1/2-1/2

[Event "Early-Titled-Tuesday-Blitz-May-14-2024"]
[Site "Chess.com"]
[Date "2024.05.14"]
[Round "7"]
[White "snowlord"]
[Black "js20000"]
[Result "1-0"]
[WhiteElo "2940"]
[BlackElo "2763"]
[TimeControl "180+1"]
[EndTime "9:20:52 PDT"]
[Termination "snowlord won by checkmate"]

1. d4 {[%clk 0:03:00.9]} 1... g6 {[%clk 0:03:00.1]} 2. e4 {[%clk 0:03:00.4]}
2... Bg7 {[%clk 0:03:00.2]} 3. Nc3 {[%clk 0:03:01]} 3... a5 {[%clk 0:02:58.9]}
4. h4 {[%clk 0:03:00.7]} 4... h5 {[%clk 0:02:56]} 5. Bc4 {[%clk 0:02:57.6]} 5...
e6 {[%clk 0:02:54.6]} 6. Bg5 {[%clk 0:02:56.2]} 6... Ne7 {[%clk 0:02:54.2]} 7.
Qd2 {[%clk 0:02:56.7]} 7... c6 {[%clk 0:02:49.9]} 8. e5 {[%clk 0:02:52.5]} 8...
b5 {[%clk 0:02:45]} 9. Bd3 {[%clk 0:02:47.7]} 9... d5 {[%clk 0:02:44.4]} 10.
exd6 {[%clk 0:02:37]} 10... Qxd6 {[%clk 0:02:43.7]} 11. Nf3 {[%clk 0:02:37.9]}
11... Qc7 {[%clk 0:02:19.7]} 12. a4 {[%clk 0:02:36.9]} 12... b4 {[%clk
0:02:18.4]} 13. Ne4 {[%clk 0:02:37.3]} 13... Nd7 {[%clk 0:02:18.1]} 14. Bf4
{[%clk 0:02:12.1]} 14... Qa7 {[%clk 0:02:09.9]} 15. Nd6+ {[%clk 0:02:11.1]}
15... Kf8 {[%clk 0:02:09.1]} 16. O-O {[%clk 0:01:52.5]} 16... Nd5 {[%clk
0:01:57]} 17. Bg3 {[%clk 0:01:38.3]} 17... Bh6 {[%clk 0:01:55.5]} 18. Ng5 {[%clk
0:01:33.8]} 18... Bxg5 {[%clk 0:01:02.8]} 19. Qxg5 {[%clk 0:01:34.7]} 19... Ba6
{[%clk 0:00:58]} 20. Nxf7 {[%clk 0:01:19.1]} 20... Bxd3 {[%clk 0:00:27.7]} 21.
Nxh8 {[%clk 0:01:18.8]} 21... Qxd4 {[%clk 0:00:26.4]} 22. cxd3 {[%clk 0:00:52]}
22... Qxh8 {[%clk 0:00:25]} 23. Qxg6 {[%clk 0:00:52.6]} 23... Ke7 {[%clk
0:00:23.7]} 24. Rfe1 {[%clk 0:00:50.2]} 24... Nf8 {[%clk 0:00:19.8]} 25. Qg5+
{[%clk 0:00:48.9]} 25... Kd7 {[%clk 0:00:19.9]} 26. Rac1 {[%clk 0:00:46.1]}
26... Qxb2 {[%clk 0:00:18.6]} 27. Qxh5 {[%clk 0:00:44.5]} 27... Qf6 {[%clk
0:00:15.3]} 28. Qg4 {[%clk 0:00:38.2]} 28... Nc3 {[%clk 0:00:13.8]} 29. Be5
{[%clk 0:00:34.4]} 29... Qg6 {[%clk 0:00:13.2]} 30. Qd4+ {[%clk 0:00:24.5]}
30... Nd5 {[%clk 0:00:13]} 31. Qc5 {[%clk 0:00:25.1]} 31... Rc8 {[%clk
0:00:10.8]} 32. Qd6+ {[%clk 0:00:25.5]} 32... Ke8 {[%clk 0:00:11.2]} 33. Rxc6
{[%clk 0:00:25.4]} 33... Rxc6 {[%clk 0:00:10.6]} 34. Qxc6+ {[%clk 0:00:26.3]}
34... Kf7 {[%clk 0:00:10.9]} 35. Bg3 {[%clk 0:00:24.4]} 35... Qxd3 {[%clk
0:00:10.4]} 36. h5 {[%clk 0:00:21.9]} 36... b3 {[%clk 0:00:10.6]} 37. Qb7+
{[%clk 0:00:21.2]} 37... Ke8 {[%clk 0:00:10.5]} 38. h6 {[%clk 0:00:20.5]} 38...
Nd7 {[%clk 0:00:08.5]} 39. Rxe6+ {[%clk 0:00:19.8]} 39... Kd8 {[%clk 0:00:07.6]}
40. Bh4+ {[%clk 0:00:19.4]} 40... N5f6 {[%clk 0:00:06.5]} 41. Bxf6+ {[%clk
0:00:19.9]} 41... Nxf6 {[%clk 0:00:06.9]} 42. Qb6+ {[%clk 0:00:13.5]} 42... Kd7
{[%clk 0:00:06.5]} 43. Rxf6 {[%clk 0:00:14.2]} 43... Qd1+ {[%clk 0:00:06]} 44.
Kh2 {[%clk 0:00:15]} 44... Qh5+ {[%clk 0:00:06.5]} 45. Kg3 {[%clk 0:00:15.8]}
45... Qg5+ {[%clk 0:00:07.1]} 46. Kf3 {[%clk 0:00:16.5]} 46... Qd5+ {[%clk
0:00:07.8]} 47. Kf4 {[%clk 0:00:16.9]} 47... Qc4+ {[%clk 0:00:07.7]} 48. Kg5
{[%clk 0:00:17]} 48... Qd5+ {[%clk 0:00:07.7]} 49. Kg6 {[%clk 0:00:17.6]} 49...
Qxg2+ {[%clk 0:00:08]} 50. Kh7 {[%clk 0:00:16.7]} 50... Qe4+ {[%clk 0:00:08.3]}
51. Rg6 {[%clk 0:00:17.4]} 51... Qc2 {[%clk 0:00:08.1]} 52. Qb7+ {[%clk
0:00:16.5]} 52... Ke8 {[%clk 0:00:08]} 53. Qb8+ {[%clk 0:00:13.6]} 53... Kf7
{[%clk 0:00:07.3]} 54. Qg8+ {[%clk 0:00:13.2]} 54... Ke7 {[%clk 0:00:07.9]} 55.
Kh8 {[%clk 0:00:13.5]} 55... b2 {[%clk 0:00:07.9]} 56. Rg7+ {[%clk 0:00:14.1]}
56... Kd6 {[%clk 0:00:08]} 57. Qd8+ {[%clk 0:00:14.4]} 57... Ke5 {[%clk
0:00:08]} 58. Qg5+ {[%clk 0:00:14.2]} 58... Kd4 {[%clk 0:00:07]} 59. Rd7+ {[%clk
0:00:14.5]} 59... Ke4 {[%clk 0:00:05.8]} 60. Qg6+ {[%clk 0:00:14.2]} 60... Kf3
{[%clk 0:00:06.3]} 61. Qxc2 {[%clk 0:00:15]} 61... b1=Q {[%clk 0:00:06.3]} 62.
Qxb1 {[%clk 0:00:15.6]} 62... Kg2 {[%clk 0:00:07.2]} 63. h7 {[%clk 0:00:15.7]}
63... Kh2 {[%clk 0:00:04.2]} 64. Kg7 {[%clk 0:00:16]} 64... Kg2 {[%clk
0:00:04.6]} 65. f4 {[%clk 0:00:16.9]} 65... Kg3 {[%clk 0:00:04.9]} 66. f5 {[%clk
0:00:17.8]} 66... Kg4 {[%clk 0:00:05.8]} 67. f6 {[%clk 0:00:18.7]} 67... Kg5
{[%clk 0:00:06.3]} 68. f7 {[%clk 0:00:19.6]} 68... Kg4 {[%clk 0:00:06.9]} 69.
h8=Q {[%clk 0:00:19.9]} 69... Kg3 {[%clk 0:00:07.8]} 70. f8=Q {[%clk 0:00:20]}
70... Kg2 {[%clk 0:00:08.1]} 71. Rd2+ {[%clk 0:00:20]} 71... Kg3 {[%clk
0:00:08.4]} 72. Qh2+ {[%clk 0:00:20.1]} 72... Kg4 {[%clk 0:00:08.8]} 73. Qff5#
{[%clk 0:00:20.6]} 1-0

[Event "Early-Titled-Tuesday-Blitz-May-14-2024"]
[Site "Chess.com"]
[Date "2024.05.14"]
[Round "7"]
[White "Pomegranate988"]
[Black "kuchma777"]
[Result "0-1"]
[WhiteElo "2641"]
[BlackElo "2545"]
[TimeControl "180+1"]
[EndTime "9:20:52 PDT"]
[Termination "kuchma777 won on time"]

1. Nf3 {[%clk 0:03:00.9]} 1... d5 {[%clk 0:02:59.9]} 2. g3 {[%clk 0:02:59.8]}
2... g6 {[%clk 0:02:59.6]} 3. Bg2 {[%clk 0:03:00]} 3... Bg7 {[%clk 0:03:00.1]}
4. O-O {[%clk 0:02:59.1]} 4... e5 {[%clk 0:03:00.4]} 5. d3 {[%clk 0:02:57.3]}
5... Nc6 {[%clk 0:03:00.3]} 6. Nbd2 {[%clk 0:02:54.7]} 6... h6 {[%clk
0:03:00.6]} 7. c4 {[%clk 0:02:52.9]} 7... d4 {[%clk 0:02:59.9]} 8. Rb1 {[%clk
0:02:51.4]} 8... a5 {[%clk 0:02:59.7]} 9. a3 {[%clk 0:02:50.9]} 9... Qe7 {[%clk
0:02:55.9]} 10. e3 {[%clk 0:02:42.9]} 10... dxe3 {[%clk 0:02:54.1]} 11. fxe3
{[%clk 0:02:43.8]} 11... Nf6 {[%clk 0:02:54.5]} 12. Qa4 {[%clk 0:02:18.1]} 12...
O-O {[%clk 0:02:51.6]} 13. b4 {[%clk 0:02:18.2]} 13... Bf5 {[%clk 0:02:36]} 14.
e4 {[%clk 0:02:16.9]} 14... axb4 {[%clk 0:02:35.9]} 15. Qb3 {[%clk 0:02:16.3]}
15... Be6 {[%clk 0:02:24.9]} 16. axb4 {[%clk 0:02:15.6]} 16... Nd7 {[%clk
0:02:13.4]} 17. Bb2 {[%clk 0:02:02.1]} 17... Qxb4 {[%clk 0:02:05.6]} 18. Bc3
{[%clk 0:01:36.3]} 18... Qxb3 {[%clk 0:02:03.5]} 19. Nxb3 {[%clk 0:01:37.2]}
19... b6 {[%clk 0:02:03.9]} 20. Ra1 {[%clk 0:01:32]} 20... Nc5 {[%clk
0:01:46.3]} 21. Nxc5 {[%clk 0:01:22.4]} 21... bxc5 {[%clk 0:01:47.2]} 22. Rxa8
{[%clk 0:01:18.6]} 22... Rxa8 {[%clk 0:01:45.8]} 23. Ra1 {[%clk 0:01:15.8]}
23... Rb8 {[%clk 0:01:43.7]} 24. Kf2 {[%clk 0:01:10.1]} 24... Rb3 {[%clk
0:01:33.4]} 25. Rc1 {[%clk 0:01:06.7]} 25... Nb4 {[%clk 0:01:33.7]} 26. Bxb4
{[%clk 0:00:55]} 26... cxb4 {[%clk 0:01:33.7]} 27. Bf1 {[%clk 0:00:49.8]} 27...
Rb2+ {[%clk 0:01:32.5]} 28. Be2 {[%clk 0:00:45.8]} 28... f6 {[%clk 0:01:25.9]}
29. Ra1 {[%clk 0:00:44.3]} 29... Bf8 {[%clk 0:01:20.9]} 30. Ra5 {[%clk
0:00:38.3]} 30... b3 {[%clk 0:01:14.4]} 31. Rb5 {[%clk 0:00:37.1]} 31... c6
{[%clk 0:01:14.4]} 32. Rb8 {[%clk 0:00:36.2]} 32... Kf7 {[%clk 0:00:46]} 33.
Rb7+ {[%clk 0:00:33.1]} 33... Kg8 {[%clk 0:00:37.8]} 34. Rb8 {[%clk 0:00:32.6]}
34... Kg7 {[%clk 0:00:38.4]} 35. Rb7+ {[%clk 0:00:31.9]} 35... Bf7 {[%clk
0:00:39]} 36. Ke1 {[%clk 0:00:28.5]} 36... Rb1+ {[%clk 0:00:31.8]} 37. Kd2
{[%clk 0:00:27.5]} 37... Ba3 {[%clk 0:00:28.1]} 38. Bd1 {[%clk 0:00:25]} 38...
b2 {[%clk 0:00:27.3]} 39. Bc2 {[%clk 0:00:24]} 39... Rf1 {[%clk 0:00:22]} 40.
Ke2 {[%clk 0:00:23.3]} 40... Rc1 {[%clk 0:00:20.5]} 41. Kd2 {[%clk 0:00:23.5]}
41... g5 {[%clk 0:00:16.3]} 42. d4 {[%clk 0:00:21.2]} 42... Kf8 {[%clk
0:00:07.1]} 43. dxe5 {[%clk 0:00:19.9]} 43... fxe5 {[%clk 0:00:08]} 44. Nxe5
{[%clk 0:00:19.6]} 44... Bh5 {[%clk 0:00:06.7]} 45. g4 {[%clk 0:00:19.1]} 45...
Be8 {[%clk 0:00:06.4]} 46. Nd3 {[%clk 0:00:18.4]} 46... Rh1 {[%clk 0:00:05.7]}
47. Nxb2 {[%clk 0:00:18.6]} 47... Rxh2+ {[%clk 0:00:06.2]} 48. Kc3 {[%clk
0:00:18.9]} 48... Rh3+ {[%clk 0:00:05.6]} 49. Kd4 {[%clk 0:00:19]} 49... c5+
{[%clk 0:00:03.1]} 50. Ke5 {[%clk 0:00:14.6]} 50... Rh2 {[%clk 0:00:04]} 51. Ba4
{[%clk 0:00:05.7]} 51... Bxb2+ {[%clk 0:00:02.7]} 52. Kf5 {[%clk 0:00:04.7]}
52... Bxa4 {[%clk 0:00:01.6]} 53. Rb8+ {[%clk 0:00:03.8]} 53... Ke7 {[%clk
0:00:02.1]} 54. Rb7+ {[%clk 0:00:03.9]} 54... Kd6 {[%clk 0:00:02.7]} 55. Rh7
{[%clk 0:00:03.2]} 55... Bc6 {[%clk 0:00:03]} 56. e5+ {[%clk 0:00:02.9]} 56...
Bxe5 {[%clk 0:00:00.7]} 0-1